Workbook

Sheet Intro
A1: Zavedenie školských autobusov v okresoch Senica a Zlaté Moravce a zrušenie malých škôl
A2: Ex- ante hodnotenie politiky
A3: Autori: Martin Haluš, Daniela Zápražná
A4: Riešený problém: Finančne neefektívna alokácia žiakov v malých školách, ktorých možno dopraviť do najbližšej väčšej školy do 25 minút (bez uvažovania s časom potrebným na nástup/výstup žiakov)
A5: Alternatívy riešenia problému:
A6: Z nasledujúcich alternatív boli uvažované:
A7: 1. „Nerobiť nič“
A8: 2. „Preplácané lístky“: využitie súčasnej prímestskej dopravy na prepravu žiakov a preplácanie lístkov
A9: 3. „Prenájom“: outsourcing služby súkromnému prevádzkovateľovi a zavedenie školských autobusov
A10: 4. „Vlastné autobusy“ nákup a prevádzka školských autobusov v rámci okresu
A11: Efekty: Monetárne efekty podľa variantu predstavujú náklady na lístky, platbu súkromníkovi alebo náklady na nákup a prevádzku autobusov. Projekt prinesie úsporu na prevádzke zatvorených malých škôl a kompenzačnom príspevku pre malé školy.
A12: Analýza citlivosti: Boli testované alternatívne scenáre s rôznou výškou diskontu, inflácie, ceny za km pri prenájme súkromníkovi, miere zachádzok a teda najazdených kilometrov, a nárastu či poklesu kapitálových a prevádzkových nákladov. Na kompletnú analýzu citlivosti bola priložená kalkulačka v Exceli kde možno navoliť ľubovoľnú kombináciu vstupov a kontrolovať všetky výpočty.

Sheet Kalkulačka
A1: Zlaté Moravce
B2: Diskontná sadzba | C2: 0.02 | D2: NPV | E2: Diskontovaná úspora
B3: Indexácia | C3: 0.02
A4: Nerobiť nič | B4: Ročné náklady na malé školy | C4: =VLOOKUP(A1,Predpoklady!A1:J3,10,0) -> 4477465 | D4: =XNPV($C$2,CMA!C4:V4,CMA!C2:V2) -> -89539584.02 | E4: =$D$4-D4 -> 0
A5: Preplácané lístky | B5: Ročné náklady na lístky | C5: =IF(A26=TRUE,VLOOKUP(A1,Predpoklady!$A$1:$I$3,4,0)*C6,VLOOKUP(A1,Predpoklady!$A$1:$I$3,5,0)*C6) -> 31756.29409 | D5: =XNPV($C$2,CMA!C14:V14,CMA!C7:V7) -> -86731466.16 | E5: =D5-D4 -> 2808117.855
B6: Počet školských dní | C6: 190
A7: Prenájom | B7: Náklad na kilometer | C7: =1.3 -> 1.3 | D7: =XNPV($C$2,CMA!C27:V27,CMA!C7:V7) -> -86770482.14 | E7: =D7-D4 -> 2769101.88
B8: Marža | C8: 0.05
B9: Počet kilometrov vrátane zachádzok | C9: =VLOOKUP(A1,Predpoklady!A1:H3,2,0)*(1+C10)*C6 -> 24209.8
B10: Zachádzky | C10: 0.15
A11: Vlastné autobusy | B11: Kapitálové náklady | C11: =VLOOKUP(A1,Predpoklady!$A$1:$I$3,6,0)*C12 -> 393000 | D11: =XNPV($C$2,CMA!C50:V50,CMA!C30:V30) -> -88824011.64 | E11: =D11-D4 -> 715572.3751
B12: Zmena CAPEX | C12: 1
B13: Prevádzkové náklady (prvý rok) | C13: =SUM(C14:C15,C17) -> 14749.83668
B14: Diesel | C14: =IF(A1="Senica",Diesel!G6,Diesel!G13) -> 5905.436678
B15: Údržba a opravy | C15: =-CMA!C41 -> 6781.9
B16: Zmena udržby a opravy | C16: 1
B17: Poistné | C17: =IF(B26=TRUE,VLOOKUP(A1,Predpoklady!$A$1:$I$3,8,0),VLOOKUP(A1,Predpoklady!$A$1:$I$3,9,0)) -> 2062.5
B18: Cena za liter (eur) | C18: 0.961
B19: Hrubá mzda vodiča s odmenami | C19: 714
B20: Nominálny rast miezd | C20: 0.04
B21: Počet vodičov | C21: =VLOOKUP(A1,Predpoklady!A1:H3,7,0) -> 5
A26: TRUE | B26: FALSE

Sheet Analýza_citlivosti
B2: BASELINE | C2: Diskont | E2: Inflácia | G2: Cena za km (prenájom) | I2: Zachádzky (prenájom a vlastné autobusy) | K2: CAPEX (vlastné autobusy) | M2: OPEX (vlastné autobusy)
C3: 0.033 | D3: 0.05 | E3: 0 | F3: 0.05 | G3: 1 | H3: 2 | I3: 0.05 | J3: 0.25 | K3: 1.1 | L3: 0.9 | M3: 1.1 | N3: 0.6
A4: Nerobiť nič | B4: -89539584.02 | C4: -79596661.22 | D4: -68930710 | E4: -74669767.57 | F4: -119579388.6 | G4: -89539584.02 | H4: -89539584.02 | I4: -89539584.02 | J4: -89539584.02 | K4: -89539584.02 | L4: -89539584.02 | M4: -89539584.02 | N4: -89539584.02
A5: Preplácané lístky | B5: -86731466.16 | C5: -77101959.86 | D5: -66772216.12 | E5: -72330369.6 | F5: -115824369.1 | G5: -86731466.16 | H5: -86731466.16 | I5: -86731466.16 | J5: -86731466.16 | K5: -86731466.16 | L5: -86731466.16 | M5: -86731466.16 | N5: -86731466.16
A6: Prenájom | B6: -86770482.14 | C6: -77136643.3 | D6: -66802251.98 | E6: -72351884.05 | F6: -115902951.7 | G6: -86614926.84 | H6: -87133444.49 | I6: -86711867.1 | J6: -86829097.17 | K6: -86770482.14 | L6: -86770482.14 | M6: -86770482.14 | N6: -86770482.14
A7: Vlastné busy | B7: -88824011.64 | C7: -78977849.55 | D7: -68417684.76 | E7: -74513447.03 | F7: -117731413.2 | G7: -88824011.64 | H7: -88824011.64 | I7: -88814813 | J7: -88833210.28 | K7: -88863311.64 | L7: -88784711.64 | M7: -88902603.93 | N7: -88509642.48
C9: Diskont | E9: Inflácia | G9: Cena za km | I9: Zachádzky (celkovo) | K9: CAPEX (vlastné autobusy) | M9: OPEX (vlastné autobusy)
C10: =C3 -> 0.033 | D10: =D3 -> 0.05 | E10: 0 | F10: 0.05 | G10: 1 | H10: 2 | I10: 0.05 | J10: 0.25 | K10: 1.1 | L10: 0.9 | M10: 1.1 | N10: 0.6
A11: Nerobiť nič | B11: =-($B4-B4) -> 0 | C11: =-($B4-C4) -> 9942922.796 | D11: 20608874.01 | E11: =-($B4-E4) -> 14869816.45 | F11: -30039804.62 | G11: =-($B4-G4) -> 0 | H11: 0 | I11: 0 | J11: 0 | K11: 0 | L11: 0 | M11: 0 | N11: 0
A12: Preplácané lístky | B12: 0 | C12: 9629506.305 | D12: 19959250.04 | E12: =-($B5-E5) -> 14401096.56 | F12: -29092902.95 | G12: =-($B5-G5) -> 0 | H12: 0 | I12: 0 | J12: 0 | K12: 0 | L12: 0 | M12: 0 | N12: 0
A13: Prenájom | B13: 0 | C13: 9633838.834 | D13: 19968230.15 | E13: =-($B6-E6) -> 14418598.08 | F13: -29132469.52 | G13: =-($B6-G6) -> 155555.2954 | H13: -362962.356 | I13: 58615.03885 | J13: -58615.03885 | K13: 0 | L13: 0 | M13: 0 | N13: 0
A14: Vlastné busy | B14: 0 | C14: 9846162.095 | D14: 20406326.88 | E14: =-($B7-E7) -> 14310564.61 | F14: -28907401.53 | G14: =-($B7-G7) -> 0 | H14: 0 | I14: 9198.636167 | J14: -9198.636167 | K14: -39300 | L14: 39300 | M14: -78592.29117 | N14: 314369.1647
A16: Preplácané lístky | B16: =B5-B$4 -> 2808117.855 | C16: =C5-C$4 -> 2494701.364 | D16: =D5-D$4 -> 2158493.885 | E16: =E5-E$4 -> 2339397.963 | F16: 3755019.522 | G16: 2808117.855 | H16: 2808117.855 | I16: 2808117.855 | J16: 2808117.855 | K16: 2808117.855 | L16: 2808117.855 | M16: 2808117.855 | N16: 2808117.855
A17: Prenájom | B17: =B6-B$4 -> 2769101.88 | C17: 2460017.917 | D17: 2128458.019 | E17: =E6-E$4 -> 2317883.514 | F17: 3676436.975 | G17: 2924657.175 | H17: 2406139.524 | I17: 2827716.919 | J17: 2710486.841 | K17: 2769101.88 | L17: 2769101.88 | M17: 2769101.88 | N17: 2769101.88
A18: Vlastné busy | B18: =B7-B$4 -> 715572.3751 | C18: 618811.6737 | D18: 513025.2463 | E18: =E7-E$4 -> 156320.5378 | F18: 1847975.462 | G18: 715572.3751 | H18: 715572.3751 | I18: 724771.0113 | J18: 706373.739 | K18: 676272.3751 | L18: 754872.3751 | M18: 636980.084 | N18: 1029941.54

Sheet CMA
A2: Nulový scenár | C2: 2017-01-01 | D2: 2018-01-01 | E2: 2019-01-01 | F2: 2020-01-01 | G2: 2021-01-01 | H2: 2022-01-01 | I2: 2023-01-01 | J2: 2024-01-01 | K2: 2025-01-01 | L2: 2026-01-01 | M2: 2027-01-01 | N2: 2028-01-01 | O2: 2029-01-01 | P2: 2030-01-01 | Q2: 2031-01-01 | R2: 2032-01-01 | S2: 2033-01-01 | T2: 2034-01-01 | U2: 2035-01-01 | V2: 2036-01-01
A4: Ročné náklady (CF) | C4: =-Kalkulačka!C4 -> -4477465 | D4: =C4*(1+Kalkulačka!$C$3) -> -4567014.3 | E4: =D4*(1+Kalkulačka!$C$3) -> -4658354.586 | F4: =E4*(1+Kalkulačka!$C$3) -> -4751521.678 | G4: =F4*(1+Kalkulačka!$C$3) -> -4846552.111 | H4: =G4*(1+Kalkulačka!$C$3) -> -4943483.153 | I4: =H4*(1+Kalkulačka!$C$3) -> -5042352.817 | J4: =I4*(1+Kalkulačka!$C$3) -> -5143199.873 | K4: =J4*(1+Kalkulačka!$C$3) -> -5246063.87 | L4: =K4*(1+Kalkulačka!$C$3) -> -5350985.148 | M4: =L4*(1+Kalkulačka!$C$3) -> -5458004.851 | N4: =M4*(1+Kalkulačka!$C$3) -> -5567164.948 | O4: =N4*(1+Kalkulačka!$C$3) -> -5678508.247 | P4: =O4*(1+Kalkulačka!$C$3) -> -5792078.412 | Q4: =P4*(1+Kalkulačka!$C$3) -> -5907919.98 | R4: =Q4*(1+Kalkulačka!$C$3) -> -6026078.379 | S4: =R4*(1+Kalkulačka!$C$3) -> -6146599.947 | T4: =S4*(1+Kalkulačka!$C$3) -> -6269531.946 | U4: =T4*(1+Kalkulačka!$C$3) -> -6394922.585 | V4: =U4*(1+Kalkulačka!$C$3) -> -6522821.037
A5: =XNPV(Kalkulačka!C2,C5:V5,C2:V2) -> 1.209634442e+10 | C5: =Predpoklady!L2 -> 604882850 | D5: =C5*(1+Kalkulačka!$C$3) -> 616980507 | E5: =D5*(1+Kalkulačka!$C$3) -> 629320117.1 | F5: =E5*(1+Kalkulačka!$C$3) -> 641906519.5 | G5: =F5*(1+Kalkulačka!$C$3) -> 654744649.9 | H5: =G5*(1+Kalkulačka!$C$3) -> 667839542.9 | I5: =H5*(1+Kalkulačka!$C$3) -> 681196333.7 | J5: =I5*(1+Kalkulačka!$C$3) -> 694820260.4 | K5: =J5*(1+Kalkulačka!$C$3) -> 708716665.6 | L5: =K5*(1+Kalkulačka!$C$3) -> 722890998.9 | M5: =L5*(1+Kalkulačka!$C$3) -> 737348818.9 | N5: =M5*(1+Kalkulačka!$C$3) -> 752095795.3 | O5: =N5*(1+Kalkulačka!$C$3) -> 767137711.2 | P5: =O5*(1+Kalkulačka!$C$3) -> 782480465.4 | Q5: =P5*(1+Kalkulačka!$C$3) -> 798130074.7 | R5: =Q5*(1+Kalkulačka!$C$3) -> 814092676.2 | S5: =R5*(1+Kalkulačka!$C$3) -> 830374529.7 | T5: =S5*(1+Kalkulačka!$C$3) -> 846982020.3 | U5: =T5*(1+Kalkulačka!$C$3) -> 863921660.7 | V5: =U5*(1+Kalkulačka!$C$3) -> 881200094
A6: =A5*0.02/20 -> 12096344.42
A7: Preplácané lístky | C7: 2017-01-01 | D7: 2018-01-01 | E7: 2019-01-01 | F7: 2020-01-01 | G7: 2021-01-01 | H7: 2022-01-01 | I7: 2023-01-01 | J7: 2024-01-01 | K7: 2025-01-01 | L7: 2026-01-01 | M7: 2027-01-01 | N7: 2028-01-01 | O7: 2029-01-01 | P7: 2030-01-01 | Q7: 2031-01-01 | R7: 2032-01-01 | S7: 2033-01-01 | T7: 2034-01-01 | U7: 2035-01-01 | V7: 2036-01-01
A9: Ročné náklady na malé školy | C9: =C4 -> -4477465 | D9: =D4 -> -4567014.3 | E9: -4658354.586 | F9: -4751521.678 | G9: -4846552.111 | H9: -4943483.153 | I9: -5042352.817 | J9: -5143199.873 | K9: -5246063.87 | L9: -5350985.148 | M9: -5458004.851 | N9: -5567164.948 | O9: -5678508.247 | P9: -5792078.412 | Q9: -5907919.98 | R9: -6026078.379 | S9: -6146599.947 | T9: -6269531.946 | U9: -6394922.585 | V9: -6522821.037
A10: Úspora pri zavretí škôl | C10: =IF(Kalkulačka!A1="Senica",Predpoklady!C3,Predpoklady!C2) -> 172893 | D10: =C10*(1+Kalkulačka!$C$3) -> 176350.86 | E10: =D10*(1+Kalkulačka!$C$3) -> 179877.8772 | F10: =E10*(1+Kalkulačka!$C$3) -> 183475.4347 | G10: =F10*(1+Kalkulačka!$C$3) -> 187144.9434 | H10: =G10*(1+Kalkulačka!$C$3) -> 190887.8423 | I10: =H10*(1+Kalkulačka!$C$3) -> 194705.5992 | J10: =I10*(1+Kalkulačka!$C$3) -> 198599.7111 | K10: =J10*(1+Kalkulačka!$C$3) -> 202571.7054 | L10: =K10*(1+Kalkulačka!$C$3) -> 206623.1395 | M10: =L10*(1+Kalkulačka!$C$3) -> 210755.6023 | N10: =M10*(1+Kalkulačka!$C$3) -> 214970.7143 | O10: =N10*(1+Kalkulačka!$C$3) -> 219270.1286 | P10: =O10*(1+Kalkulačka!$C$3) -> 223655.5312 | Q10: =P10*(1+Kalkulačka!$C$3) -> 228128.6418 | R10: =Q10*(1+Kalkulačka!$C$3) -> 232691.2146 | S10: =R10*(1+Kalkulačka!$C$3) -> 237345.0389 | T10: =S10*(1+Kalkulačka!$C$3) -> 242091.9397 | U10: =T10*(1+Kalkulačka!$C$3) -> 246933.7785 | V10: =U10*(1+Kalkulačka!$C$3) -> 251872.4541
A11: Ročné náklady na lístky | C11: =-Kalkulačka!C5 -> -31756.29409 | D11: =C11*(1+Kalkulačka!$C$3) -> -32391.41997 | E11: =D11*(1+Kalkulačka!$C$3) -> -33039.24837 | F11: =E11*(1+Kalkulačka!$C$3) -> -33700.03333 | G11: =F11*(1+Kalkulačka!$C$3) -> -34374.034 | H11: =G11*(1+Kalkulačka!$C$3) -> -35061.51468 | I11: =H11*(1+Kalkulačka!$C$3) -> -35762.74497 | J11: =I11*(1+Kalkulačka!$C$3) -> -36477.99987 | K11: =J11*(1+Kalkulačka!$C$3) -> -37207.55987 | L11: =K11*(1+Kalkulačka!$C$3) -> -37951.71107 | M11: =L11*(1+Kalkulačka!$C$3) -> -38710.74529 | N11: =M11*(1+Kalkulačka!$C$3) -> -39484.9602 | O11: =N11*(1+Kalkulačka!$C$3) -> -40274.6594 | P11: =O11*(1+Kalkulačka!$C$3) -> -41080.15259 | Q11: =P11*(1+Kalkulačka!$C$3) -> -41901.75564 | R11: =Q11*(1+Kalkulačka!$C$3) -> -42739.79075 | S11: =R11*(1+Kalkulačka!$C$3) -> -43594.58657 | T11: =S11*(1+Kalkulačka!$C$3) -> -44466.4783 | U11: =T11*(1+Kalkulačka!$C$3) -> -45355.80786 | V11: =U11*(1+Kalkulačka!$C$3) -> -46262.92402
A12: Náklady na dovybavenie škôl | C12: =-VLOOKUP(Kalkulačka!A1,Predpoklady!A1:K3,11,0) -> -14310
A14: CF | C14: =C9+C10+C11+C12 -> -4350638.294 | D14: =D9+D10+D11 -> -4423054.86 | E14: -4511515.957 | F14: -4601746.276 | G14: -4693781.202 | H14: -4787656.826 | I14: -4883409.962 | J14: -4981078.162 | K14: -5080699.725 | L14: -5182313.719 | M14: -5285959.994 | N14: -5391679.194 | O14: -5499512.778 | P14: -5609503.033 | Q14: -5721693.094 | R14: -5836126.956 | S14: -5952849.495 | T14: -6071906.485 | U14: -6193344.614 | V14: -6317211.507
A17: Prenájom | C17: 2017-01-01 | D17: 2018-01-01 | E17: 2019-01-01 | F17: 2020-01-01 | G17: 2021-01-01 | H17: 2022-01-01 | I17: 2023-01-01 | J17: 2024-01-01 | K17: 2025-01-01 | L17: 2026-01-01 | M17: 2027-01-01 | N17: 2028-01-01 | O17: 2029-01-01 | P17: 2030-01-01 | Q17: 2031-01-01 | R17: 2032-01-01 | S17: 2033-01-01 | T17: 2034-01-01 | U17: 2035-01-01 | V17: 2036-01-01
A19: Ročné náklady na malé školy | C19: =C9 -> -4477465 | D19: =D9 -> -4567014.3 | E19: -4658354.586 | F19: -4751521.678 | G19: -4846552.111 | H19: -4943483.153 | I19: -5042352.817 | J19: -5143199.873 | K19: -5246063.87 | L19: -5350985.148 | M19: -5458004.851 | N19: -5567164.948 | O19: -5678508.247 | P19: -5792078.412 | Q19: -5907919.98 | R19: -6026078.379 | S19: -6146599.947 | T19: -6269531.946 | U19: -6394922.585 | V19: -6522821.037
A20: Úspora pri zavretí škôl | C20: =C10 -> 172893 | D20: =D10 -> 176350.86 | E20: 179877.8772 | F20: 183475.4347 | G20: 187144.9434 | H20: 190887.8423 | I20: 194705.5992 | J20: 198599.7111 | K20: 202571.7054 | L20: 206623.1395 | M20: 210755.6023 | N20: 214970.7143 | O20: 219270.1286 | P20: 223655.5312 | Q20: 228128.6418 | R20: 232691.2146 | S20: 237345.0389 | T20: 242091.9397 | U20: 246933.7785 | V20: 251872.4541
A21: Náklady na dovybavenie škôl | C21: =C12 -> -14310
A23: Cena za km | C23: =OPEX!G37 -> 1.3923 | D23: =OPEX!H37 -> 1.420146 | E23: =OPEX!I37 -> 1.44854892 | F23: =OPEX!J37 -> 1.477519898 | G23: =OPEX!K37 -> 1.507070296 | H23: =OPEX!L37 -> 1.537211702 | I23: =OPEX!M37 -> 1.567955936 | J23: =OPEX!N37 -> 1.599315055 | K23: =OPEX!O37 -> 1.631301356 | L23: =OPEX!P37 -> 1.663927383 | M23: =OPEX!Q37 -> 1.697205931 | N23: =OPEX!R37 -> 1.73115005 | O23: =OPEX!S37 -> 1.765773051 | P23: =OPEX!T37 -> 1.801088512 | Q23: =OPEX!U37 -> 1.837110282 | R23: =OPEX!V37 -> 1.873852487 | S23: =OPEX!W37 -> 1.911329537 | T23: =OPEX!X37 -> 1.949556128 | U23: =OPEX!Y37 -> 1.988547251 | V23: =OPEX!Z37 -> 2.028318196
A24: Počet km | C24: =Kalkulačka!C9 -> 24209.8 | D24: =C24 -> 24209.8 | E24: =D24 -> 24209.8 | F24: 24209.8 | G24: 24209.8 | H24: 24209.8 | I24: 24209.8 | J24: 24209.8 | K24: 24209.8 | L24: 24209.8 | M24: 24209.8 | N24: 24209.8 | O24: 24209.8 | P24: 24209.8 | Q24: 24209.8 | R24: 24209.8 | S24: =R24 -> 24209.8 | T24: 24209.8 | U24: 24209.8 | V24: 24209.8
A25: Ročná platba súkromníkovi | C25: =-C23*C24 -> -33707.30454 | D25: -34381.45063 | E25: -35069.07964 | F25: -35770.46124 | G25: -36485.87046 | H25: -37215.58787 | I25: -37959.89963 | J25: -38719.09762 | K25: -39493.47957 | L25: -40283.34916 | M25: -41089.01615 | N25: -41910.79647 | O25: -42749.0124 | P25: -43603.99265 | Q25: -44476.0725 | R25: -45365.59395 | S25: -46272.90583 | T25: -47198.36395 | U25: -48142.33123 | V25: -49105.17785
A27: CF | C27: =C19+C20+C25+C21 -> -4352589.305 | D27: =D19+D20+D25 -> -4425044.891 | E27: -4513545.788 | F27: -4603816.704 | G27: -4695893.038 | H27: -4789810.899 | I27: -4885607.117 | J27: -4983319.259 | K27: -5082985.645 | L27: -5184645.357 | M27: -5288338.265 | N27: -5394105.03 | O27: -5501987.131 | P27: -5612026.873 | Q27: -5724267.411 | R27: -5838752.759 | S27: -5955527.814 | T27: -6074638.37 | U27: -6196131.138 | V27: -6320053.76
C29: =DATE(C30,1,1) ->  | D29: =DATE(D30,1,1) -> 
A30: Vlastné autobusy | C30: 2017-01-01 | D30: 2018-01-01 | E30: 2019-01-01 | F30: 2020-01-01 | G30: 2021-01-01 | H30: 2022-01-01 | I30: 2023-01-01 | J30: 2024-01-01 | K30: 2025-01-01 | L30: 2026-01-01 | M30: 2027-01-01 | N30: 2028-01-01 | O30: 2029-01-01 | P30: 2030-01-01 | Q30: 2031-01-01 | R30: 2032-01-01 | S30: 2033-01-01 | T30: 2034-01-01 | U30: 2035-01-01 | V30: 2036-01-01
A32: Ročné náklady na malé školy | C32: =C19 -> -4477465 | D32: =D19 -> -4567014.3 | E32: -4658354.586 | F32: -4751521.678 | G32: -4846552.111 | H32: -4943483.153 | I32: -5042352.817 | J32: -5143199.873 | K32: -5246063.87 | L32: -5350985.148 | M32: -5458004.851 | N32: -5567164.948 | O32: -5678508.247 | P32: -5792078.412 | Q32: -5907919.98 | R32: -6026078.379 | S32: -6146599.947 | T32: -6269531.946 | U32: -6394922.585 | V32: -6522821.037
A33: Úspora pri zavretí škôl | C33: =C20 -> 172893 | D33: 176350.86 | E33: 179877.8772 | F33: 183475.4347 | G33: 187144.9434 | H33: 190887.8423 | I33: 194705.5992 | J33: 198599.7111 | K33: 202571.7054 | L33: 206623.1395 | M33: 210755.6023 | N33: 214970.7143 | O33: 219270.1286 | P33: 223655.5312 | Q33: 228128.6418 | R33: 232691.2146 | S33: 237345.0389 | T33: 242091.9397 | U33: 246933.7785 | V33: 251872.4541
A34: Náklady na dovybavenie škôl | C34: -14310
A36: Kapitálové nákaldy | C36: =-Kalkulačka!C11 -> -393000
A38: Prevádzkové náklady | C38: =C41+C46+C47+C48 -> -72669.51668 | D38: =D41+D46+D47+D48 -> -75074.79737 | E38: -88817.5525 | F38: -96184.80845 | G38: -100741.3402 | H38: -106006.8774 | I38: -113320.1103 | J38: -127664.5965 | K38: -152043.0671 | L38: -155913.3344 | M38: -159976.2985 | N38: -164108.055 | O38: -168442.903 | P38: -172921.8527 | Q38: -177550.6347 | R38: -182350.4079 | S38: -187296.9693 | T38: -192420.8631 | U38: -197717.2907 | V38: -203198.4212
A39: Odpisy | C39: =$C$36*0.25 -> -98250 | D39: =$C$36*0.25 -> -98250 | E39: =$C$36*0.25 -> -98250 | F39: =$C$36*0.25 -> -98250
A41: Údržba a opravy | C41: =-SUM(C42:C44) -> -6781.9 | D41: -6781.9 | E41: -18025.5 | F41: -22796 | G41: -24654.3 | H41: -27116.1 | I41: -31515.9 | J41: -42832.9 | K41: -64065.3 | L41: -64666.2 | M41: -65331.6 | N41: -65932.5 | O41: -66597.9 | P41: -67263.3 | Q41: -67928.7 | R41: -68609.3 | S41: -69274.7 | T41: -69949 | U41: -70620.7 | V41: -71295
A42: Typ 1 | C42: =IF(Kalkulačka!$A$1="Senica",OPEX!G25,OPEX!G30)*Kalkulačka!$C$16 -> 333.9 | D42: =IF(Kalkulačka!$A$1="Senica",OPEX!H25,OPEX!H30)*Kalkulačka!$C$16 -> 333.9 | E42: =IF(Kalkulačka!$A$1="Senica",OPEX!I25,OPEX!I30)*Kalkulačka!$C$16 -> 894.6 | F42: =IF(Kalkulačka!$A$1="Senica",OPEX!J25,OPEX!J30)*Kalkulačka!$C$16 -> 1127.7 | G42: =IF(Kalkulačka!$A$1="Senica",OPEX!K25,OPEX!K30)*Kalkulačka!$C$16 -> 1222.2 | H42: =IF(Kalkulačka!$A$1="Senica",OPEX!L25,OPEX!L30)*Kalkulačka!$C$16 -> 1341.9 | I42: =IF(Kalkulačka!$A$1="Senica",OPEX!M25,OPEX!M30)*Kalkulačka!$C$16 -> 1562.4 | J42: =IF(Kalkulačka!$A$1="Senica",OPEX!N25,OPEX!N30)*Kalkulačka!$C$16 -> 2123.1 | K42: =IF(Kalkulačka!$A$1="Senica",OPEX!O25,OPEX!O30)*Kalkulačka!$C$16 -> 3175.2 | L42: =IF(Kalkulačka!$A$1="Senica",OPEX!P25,OPEX!P30)*Kalkulačka!$C$16 -> 3206.7 | M42: =IF(Kalkulačka!$A$1="Senica",OPEX!Q25,OPEX!Q30)*Kalkulačka!$C$16 -> 3238.2 | N42: =IF(Kalkulačka!$A$1="Senica",OPEX!R25,OPEX!R30)*Kalkulačka!$C$16 -> 3269.7 | O42: =IF(Kalkulačka!$A$1="Senica",OPEX!S25,OPEX!S30)*Kalkulačka!$C$16 -> 3301.2 | P42: =IF(Kalkulačka!$A$1="Senica",OPEX!T25,OPEX!T30)*Kalkulačka!$C$16 -> 3332.7 | Q42: =IF(Kalkulačka!$A$1="Senica",OPEX!U25,OPEX!U30)*Kalkulačka!$C$16 -> 3364.2 | R42: =IF(Kalkulačka!$A$1="Senica",OPEX!V25,OPEX!V30)*Kalkulačka!$C$16 -> 3402 | S42: =IF(Kalkulačka!$A$1="Senica",OPEX!W25,OPEX!W30)*Kalkulačka!$C$16 -> 3433.5 | T42: =IF(Kalkulačka!$A$1="Senica",OPEX!X25,OPEX!X30)*Kalkulačka!$C$16 -> 3465 | U42: =IF(Kalkulačka!$A$1="Senica",OPEX!Y25,OPEX!Y30)*Kalkulačka!$C$16 -> 3502.8 | V42: =IF(Kalkulačka!$A$1="Senica",OPEX!Z25,OPEX!Z30)*Kalkulačka!$C$16 -> 3534.3
A43: Typ 2 | C43: =IF(Kalkulačka!$A$1="Senica",OPEX!G26,OPEX!G31)*Kalkulačka!$C$16 -> 578.5 | D43: =IF(Kalkulačka!$A$1="Senica",OPEX!H26,OPEX!H31)*Kalkulačka!$C$16 -> 578.5 | E43: =IF(Kalkulačka!$A$1="Senica",OPEX!I26,OPEX!I31)*Kalkulačka!$C$16 -> 1521.9 | F43: =IF(Kalkulačka!$A$1="Senica",OPEX!J26,OPEX!J31)*Kalkulačka!$C$16 -> 1931.3 | G43: =IF(Kalkulačka!$A$1="Senica",OPEX!K26,OPEX!K31)*Kalkulačka!$C$16 -> 2082.6 | H43: =IF(Kalkulačka!$A$1="Senica",OPEX!L26,OPEX!L31)*Kalkulačka!$C$16 -> 2296.2 | I43: =IF(Kalkulačka!$A$1="Senica",OPEX!M26,OPEX!M31)*Kalkulačka!$C$16 -> 2670 | J43: =IF(Kalkulačka!$A$1="Senica",OPEX!N26,OPEX!N31)*Kalkulačka!$C$16 -> 3622.3 | K43: =IF(Kalkulačka!$A$1="Senica",OPEX!O26,OPEX!O31)*Kalkulačka!$C$16 -> 5420.1 | L43: =IF(Kalkulačka!$A$1="Senica",OPEX!P26,OPEX!P31)*Kalkulačka!$C$16 -> 5473.5 | M43: =IF(Kalkulačka!$A$1="Senica",OPEX!Q26,OPEX!Q31)*Kalkulačka!$C$16 -> 5526.9 | N43: =IF(Kalkulačka!$A$1="Senica",OPEX!R26,OPEX!R31)*Kalkulačka!$C$16 -> 5580.3 | O43: =IF(Kalkulačka!$A$1="Senica",OPEX!S26,OPEX!S31)*Kalkulačka!$C$16 -> 5633.7 | P43: =IF(Kalkulačka!$A$1="Senica",OPEX!T26,OPEX!T31)*Kalkulačka!$C$16 -> 5687.1 | Q43: =IF(Kalkulačka!$A$1="Senica",OPEX!U26,OPEX!U31)*Kalkulačka!$C$16 -> 5740.5 | R43: =IF(Kalkulačka!$A$1="Senica",OPEX!V26,OPEX!V31)*Kalkulačka!$C$16 -> 5802.8 | S43: =IF(Kalkulačka!$A$1="Senica",OPEX!W26,OPEX!W31)*Kalkulačka!$C$16 -> 5856.2 | T43: =IF(Kalkulačka!$A$1="Senica",OPEX!X26,OPEX!X31)*Kalkulačka!$C$16 -> 5918.5 | U43: =IF(Kalkulačka!$A$1="Senica",OPEX!Y26,OPEX!Y31)*Kalkulačka!$C$16 -> 5971.9 | V43: =IF(Kalkulačka!$A$1="Senica",OPEX!Z26,OPEX!Z31)*Kalkulačka!$C$16 -> 6034.2
A44: Typ 3 | C44: =IF(Kalkulačka!$A$1="Senica",OPEX!G27,OPEX!G32)*Kalkulačka!$C$16 -> 5869.5 | D44: =IF(Kalkulačka!$A$1="Senica",OPEX!H27,OPEX!H32)*Kalkulačka!$C$16 -> 5869.5 | E44: =IF(Kalkulačka!$A$1="Senica",OPEX!I27,OPEX!I32)*Kalkulačka!$C$16 -> 15609 | F44: =IF(Kalkulačka!$A$1="Senica",OPEX!J27,OPEX!J32)*Kalkulačka!$C$16 -> 19737 | G44: =IF(Kalkulačka!$A$1="Senica",OPEX!K27,OPEX!K32)*Kalkulačka!$C$16 -> 21349.5 | H44: =IF(Kalkulačka!$A$1="Senica",OPEX!L27,OPEX!L32)*Kalkulačka!$C$16 -> 23478 | I44: =IF(Kalkulačka!$A$1="Senica",OPEX!M27,OPEX!M32)*Kalkulačka!$C$16 -> 27283.5 | J44: =IF(Kalkulačka!$A$1="Senica",OPEX!N27,OPEX!N32)*Kalkulačka!$C$16 -> 37087.5 | K44: =IF(Kalkulačka!$A$1="Senica",OPEX!O27,OPEX!O32)*Kalkulačka!$C$16 -> 55470 | L44: =IF(Kalkulačka!$A$1="Senica",OPEX!P27,OPEX!P32)*Kalkulačka!$C$16 -> 55986 | M44: =IF(Kalkulačka!$A$1="Senica",OPEX!Q27,OPEX!Q32)*Kalkulačka!$C$16 -> 56566.5 | N44: =IF(Kalkulačka!$A$1="Senica",OPEX!R27,OPEX!R32)*Kalkulačka!$C$16 -> 57082.5 | O44: =IF(Kalkulačka!$A$1="Senica",OPEX!S27,OPEX!S32)*Kalkulačka!$C$16 -> 57663 | P44: =IF(Kalkulačka!$A$1="Senica",OPEX!T27,OPEX!T32)*Kalkulačka!$C$16 -> 58243.5 | Q44: =IF(Kalkulačka!$A$1="Senica",OPEX!U27,OPEX!U32)*Kalkulačka!$C$16 -> 58824 | R44: =IF(Kalkulačka!$A$1="Senica",OPEX!V27,OPEX!V32)*Kalkulačka!$C$16 -> 59404.5 | S44: =IF(Kalkulačka!$A$1="Senica",OPEX!W27,OPEX!W32)*Kalkulačka!$C$16 -> 59985 | T44: =IF(Kalkulačka!$A$1="Senica",OPEX!X27,OPEX!X32)*Kalkulačka!$C$16 -> 60565.5 | U44: =IF(Kalkulačka!$A$1="Senica",OPEX!Y27,OPEX!Y32)*Kalkulačka!$C$16 -> 61146 | V44: =IF(Kalkulačka!$A$1="Senica",OPEX!Z27,OPEX!Z32)*Kalkulačka!$C$16 -> 61726.5
A46: Diesel | C46: =-IF(Kalkulačka!$A$1="Senica",Diesel!G6,Diesel!G13) -> -5905.436678 | D46: =-IF(Kalkulačka!$A$1="Senica",Diesel!H6,Diesel!H13) -> -5952.680171 | E46: =-IF(Kalkulačka!$A$1="Senica",Diesel!I6,Diesel!I13) -> -6000.301613 | F46: =-IF(Kalkulačka!$A$1="Senica",Diesel!J6,Diesel!J13) -> -6048.304026 | G46: =-IF(Kalkulačka!$A$1="Senica",Diesel!K6,Diesel!K13) -> -6096.690458 | H46: =-IF(Kalkulačka!$A$1="Senica",Diesel!L6,Diesel!L13) -> -6145.463981 | I46: =-IF(Kalkulačka!$A$1="Senica",Diesel!M6,Diesel!M13) -> -6194.627693 | J46: =-IF(Kalkulačka!$A$1="Senica",Diesel!N6,Diesel!N13) -> -6244.184715 | K46: =-IF(Kalkulačka!$A$1="Senica",Diesel!O6,Diesel!O13) -> -6294.138193 | L46: =-IF(Kalkulačka!$A$1="Senica",Diesel!P6,Diesel!P13) -> -6344.491298 | M46: =-IF(Kalkulačka!$A$1="Senica",Diesel!Q6,Diesel!Q13) -> -6395.247228 | N46: =-IF(Kalkulačka!$A$1="Senica",Diesel!R6,Diesel!R13) -> -6446.409206 | O46: =-IF(Kalkulačka!$A$1="Senica",Diesel!S6,Diesel!S13) -> -6497.98048 | P46: =-IF(Kalkulačka!$A$1="Senica",Diesel!T6,Diesel!T13) -> -6549.964324 | Q46: =-IF(Kalkulačka!$A$1="Senica",Diesel!U6,Diesel!U13) -> -6602.364038 | R46: =-IF(Kalkulačka!$A$1="Senica",Diesel!V6,Diesel!V13) -> -6655.182951 | S46: =-IF(Kalkulačka!$A$1="Senica",Diesel!W6,Diesel!W13) -> -6708.424414 | T46: =-IF(Kalkulačka!$A$1="Senica",Diesel!X6,Diesel!X13) -> -6762.09181 | U46: =-IF(Kalkulačka!$A$1="Senica",Diesel!Y6,Diesel!Y13) -> -6816.188544 | V46: =-IF(Kalkulačka!$A$1="Senica",Diesel!Z6,Diesel!Z13) -> -6870.718052
A47: Poistenie | C47: =-Kalkulačka!C17 -> -2062.5 | D47: =C47*(1+Kalkulačka!$C$3) -> -2103.75 | E47: =D47*(1+Kalkulačka!$C$3) -> -2145.825 | F47: =E47*(1+Kalkulačka!$C$3) -> -2188.7415 | G47: =F47*(1+Kalkulačka!$C$3) -> -2232.51633 | H47: =G47*(1+Kalkulačka!$C$3) -> -2277.166657 | I47: =H47*(1+Kalkulačka!$C$3) -> -2322.70999 | J47: =I47*(1+Kalkulačka!$C$3) -> -2369.16419 | K47: =J47*(1+Kalkulačka!$C$3) -> -2416.547473 | L47: =K47*(1+Kalkulačka!$C$3) -> -2464.878423 | M47: =L47*(1+Kalkulačka!$C$3) -> -2514.175991 | N47: =M47*(1+Kalkulačka!$C$3) -> -2564.459511 | O47: =N47*(1+Kalkulačka!$C$3) -> -2615.748701 | P47: =O47*(1+Kalkulačka!$C$3) -> -2668.063675 | Q47: =P47*(1+Kalkulačka!$C$3) -> -2721.424949 | R47: =Q47*(1+Kalkulačka!$C$3) -> -2775.853448 | S47: =R47*(1+Kalkulačka!$C$3) -> -2831.370517 | T47: =S47*(1+Kalkulačka!$C$3) -> -2887.997927 | U47: =T47*(1+Kalkulačka!$C$3) -> -2945.757886 | V47: =U47*(1+Kalkulačka!$C$3) -> -3004.673043
A48: Mzdové náklady | C48: =-Kalkulačka!$C$19*1.352*Kalkulačka!$C$21*12 -> -57919.68 | D48: =C48*(1+Kalkulačka!$C$20) -> -60236.4672 | E48: =D48*(1+Kalkulačka!$C$20) -> -62645.92589 | F48: =E48*(1+Kalkulačka!$C$20) -> -65151.76292 | G48: =F48*(1+Kalkulačka!$C$20) -> -67757.83344 | H48: =G48*(1+Kalkulačka!$C$20) -> -70468.14678 | I48: =H48*(1+Kalkulačka!$C$20) -> -73286.87265 | J48: =I48*(1+Kalkulačka!$C$20) -> -76218.34756 | K48: =J48*(1+Kalkulačka!$C$20) -> -79267.08146 | L48: =K48*(1+Kalkulačka!$C$20) -> -82437.76472 | M48: =L48*(1+Kalkulačka!$C$20) -> -85735.2753 | N48: =M48*(1+Kalkulačka!$C$20) -> -89164.68632 | O48: =N48*(1+Kalkulačka!$C$20) -> -92731.27377 | P48: =O48*(1+Kalkulačka!$C$20) -> -96440.52472 | Q48: =P48*(1+Kalkulačka!$C$20) -> -100298.1457 | R48: =Q48*(1+Kalkulačka!$C$20) -> -104310.0715 | S48: =R48*(1+Kalkulačka!$C$20) -> -108482.4744 | T48: =S48*(1+Kalkulačka!$C$20) -> -112821.7734 | U48: =T48*(1+Kalkulačka!$C$20) -> -117334.6443 | V48: =U48*(1+Kalkulačka!$C$20) -> -122028.0301
A50: CF | C50: =C32+C33+C34+C38+C36 -> -4784551.517 | D50: =D32+D33+D34+D38+D36 -> -4465738.237 | E50: -4567294.261 | F50: -4664231.051 | G50: -4760148.508 | H50: -4858602.189 | I50: -4960967.328 | J50: -5072264.758 | K50: -5195535.232 | L50: -5300275.343 | M50: -5407225.547 | N50: -5516302.288 | O50: -5627681.021 | P50: -5741344.733 | Q50: -5857341.973 | R50: -5975737.573 | S50: -6096551.877 | T50: -6219860.869 | U50: -6345706.097 | V50: -6474147.004

Sheet Predpoklady
A1: Okres | B1: Počet km | C1: Úspora | D1: Cena lístkov s dotáciou (eur) | E1: Cena lístkov denne (eur) | F1: CAPEX | G1: Počet vodičov | H1: PZP + Havaríjne | I1: PZP | J1: Celkové náklady na malé školy | K1: Náklady na dovybavenie | L1: Celkové náklady na školy
A2: Zlaté Moravce | B2: =Diesel!C13/Kalkulačka!C6 -> 110.8 | C2: 172893 | D2: =Ceny_listkov!J24*2/1.2 -> 167.1383899 | E2: =Ceny_listkov!G24*2/1.2 -> 79.5 | F2: =B8*D8+B9*D9+B10*D10 -> 393000 | G2: =SUM(B8:B10) -> 5 | H2: =(I8+K8)*B8+(I9+K9)*B9+(I10+K10)*B10 -> 6005.8 | I2: =B8*I8+B9*I9+B10*I10 -> 2062.5 | J2: 4477465 | K2: =90*Ceny_listkov!F36 -> 14310 | L2: 604882850
A3: Senica | B3: =Diesel!C6/Kalkulačka!C6 -> 272 | C3: 255279 | D3: =Ceny_listkov!J14*2/1.2 -> 263.9525139 | E3: =Ceny_listkov!G14*2/1.2 -> 125.55 | F3: =C8*D8+C9*D9+C10*D10 -> 886000 | G3: =SUM(C8:C10) -> 8 | H3: =(I8+K8)*C8+(I9+K9)*C9+(I10+K10)*C10 -> 12802.89 | I3: =C8*I8+C9*I9+C10*I10 -> 3315 | J3: 7314756 | K3: =90*Ceny_listkov!B41 -> 23940
A7: Veľkosť autobusu | B7: Zlaté Moravce (počet) | C7: Senica (počet) | D7: Jednotková cena bez DPH | E7: Spotreba (l na 100 mk) | F7: Podiel ceny ropy na cene nafty | G7: Model | H7: Počet miest na sedenie | I7: PZP | J7: Havarijné - bez krádeže | K7: Havaríjne - s krádežou | L7: Kwh | M7: HP | N7: Objem | O7: Váha
A8: Veľký bus | B8: 0 | C8: 2 | D8: 215000 | E8: 28 | F8: 0.6 | G8: Mercedes Benz Tourismo | H8: 50 | I8: 442.5 | J8: 2331.74 | K8: 2590.83 | L8: 260.2 | M8: 365 | N8: 11980
A9: Stredný bus | B9: 3 | C9: 3 | D9: 89000 | E9: 19 | G9: ISUZU Novo Ultra | H9: 25 | I9: 442.5 | J9: 965.23 | K9: 1072.48 | L9: 140 | O9: 9800
A10: Malý bus | B10: 2 | C10: 3 | D10: 63000 | E10: 10.1 | G10: Mercedes Benz Sprinter 519 CDI | H10: 20 | I10: 367.5 | J10: 326.64 | K10: 362.93 | L10: 120 | M10: 163 | N10: 2143 | O10: 2268
B11: =SUM(B8:B10) -> 5 | C11: =SUM(C8:C10) -> 8
B14: SAD Trenčín 2014 | C14: Arriva Trnava 2013
A15: Tržby z dopravy | B15: 9279 | C15: 8407870
A16: Náhrada straty | B16: 12681 | C16: =8421948+846633 -> 9268581
B17: =C17 -> 2.102369685 | C17: =(C15+C16)/C15 -> 2.102369685

Sheet OPEX
A1: Výdavky na údržbu a opravy ako % z obstarávacej ceny autobusu
A2: Typ | B2: Kapacita | C2: Okres | D2: Počet km za rok | G2: 2017 | H2: 2018 | I2: 2019 | J2: 2020 | K2: 2021 | L2: 2022 | M2: 2023 | N2: 2024 | O2: 2025 | P2: 2026 | Q2: 2027 | R2: 2028 | S2: 2029 | T2: 2030 | U2: 2031 | V2: 2032 | W2: 2033 | X2: 2034 | Y2: 2035 | Z2: 2036
A3: 1 | B3: 20 osôb | C3: Zlaté Moravce | D3: 1672 | G3: 0.01 | H3: 0.01 | I3: 0.01 | J3: =I3+0.01 -> 0.02 | K3: 0.03 | L3: 0.04 | M3: 0.05 | N3: 0.06 | O3: 0.07 | P3: 0.08 | Q3: 0.09 | R3: 0.1 | S3: 0.11 | T3: 0.12 | U3: 0.13 | V3: 0.14 | W3: 0.15 | X3: 0.16 | Y3: 0.17 | Z3: 0.18
A4: 2 | B4: 20 osôb | C4: Senica | D4: 3192 | G4: 0.02 | H4: 0.02 | I4: 0.02 | J4: =I4+0.01 -> 0.03 | K4: 0.04 | L4: 0.05 | M4: 0.06 | N4: 0.07 | O4: 0.08 | P4: 0.09 | Q4: 0.1 | R4: 0.11 | S4: 0.12 | T4: 0.13 | U4: 0.14 | V4: 0.15 | W4: 0.16 | X4: 0.17 | Y4: 0.18 | Z4: 0.19
A5: 2 | B5: 20 osôb | C5: Senica | D5: 5396 | G5: 0.02 | H5: 0.02 | I5: 0.02 | J5: =I5+0.01 -> 0.03 | K5: 0.04 | L5: 0.05 | M5: 0.06 | N5: 0.07 | O5: 0.08 | P5: 0.09 | Q5: 0.1 | R5: 0.11 | S5: 0.12 | T5: 0.13 | U5: 0.14 | V5: 0.15 | W5: 0.16 | X5: 0.17 | Y5: 0.18 | Z5: 0.19
A6: 3 | B6: 25 osôb | C6: Zlaté Moravce | D6: 3268 | G6: 0.02 | H6: 0.02 | I6: 0.02 | J6: =I6+0.01 -> 0.03 | K6: 0.04 | L6: 0.05 | M6: 0.06 | N6: 0.07 | O6: 0.08 | P6: 0.09 | Q6: 0.1 | R6: 0.11 | S6: 0.12 | T6: 0.13 | U6: 0.14 | V6: 0.15 | W6: 0.16 | X6: 0.17 | Y6: 0.18 | Z6: 0.19
A7: 3 | B7: 25 osôb | C7: Senica | D7: 4636 | G7: 0.02 | H7: 0.02 | I7: 0.02 | J7: =I7+0.01 -> 0.03 | K7: 0.04 | L7: 0.05 | M7: 0.06 | N7: 0.07 | O7: 0.08 | P7: 0.09 | Q7: 0.1 | R7: 0.11 | S7: 0.12 | T7: 0.13 | U7: 0.14 | V7: 0.15 | W7: 0.16 | X7: 0.17 | Y7: 0.18 | Z7: 0.19
A8: 3 | B8: 25 osôb | C8: Senica | D8: 6460 | G8: 0.02 | H8: 0.02 | I8: 0.02 | J8: =I8+0.01 -> 0.03 | K8: 0.04 | L8: 0.05 | M8: 0.06 | N8: 0.07 | O8: 0.08 | P8: 0.09 | Q8: 0.1 | R8: 0.11 | S8: 0.12 | T8: 0.13 | U8: 0.14 | V8: 0.15 | W8: 0.16 | X8: 0.17 | Y8: 0.18 | Z8: 0.19
A9: 4 | B9: 50 osôb | C9: Zlaté Moravce | D9: 3724 | G9: 0.02 | H9: 0.02 | I9: 0.02 | J9: =I9+0.015 -> 0.035 | K9: 0.05 | L9: 0.065 | M9: 0.08 | N9: 0.095 | O9: 0.11 | P9: 0.125 | Q9: 0.14 | R9: 0.155 | S9: 0.17 | T9: 0.185 | U9: 0.2 | V9: 0.215 | W9: 0.23 | X9: 0.245 | Y9: 0.26 | Z9: 0.275
A10: 4 | B10: 50 osôb | C10: Zlaté Moravce | D10: 4408 | G10: 0.02 | H10: 0.02 | I10: 0.02 | J10: =I10+0.015 -> 0.035 | K10: 0.05 | L10: 0.065 | M10: 0.08 | N10: 0.095 | O10: 0.11 | P10: 0.125 | Q10: 0.14 | R10: 0.155 | S10: 0.17 | T10: 0.185 | U10: 0.2 | V10: 0.215 | W10: 0.23 | X10: 0.245 | Y10: 0.26 | Z10: 0.275
A11: 4 | B11: 50 osôb | C11: Senica | D11: 5776 | G11: 0.02 | H11: 0.02 | I11: 0.02 | J11: =I11+0.015 -> 0.035 | K11: 0.05 | L11: 0.065 | M11: 0.08 | N11: 0.095 | O11: 0.11 | P11: 0.125 | Q11: 0.14 | R11: 0.155 | S11: 0.17 | T11: 0.185 | U11: 0.2 | V11: 0.215 | W11: 0.23 | X11: 0.245 | Y11: 0.26 | Z11: 0.275
A12: 4 | B12: 50 osôb | C12: Senica | D12: 6916 | G12: 0.02 | H12: 0.02 | I12: 0.02 | J12: =I12+0.015 -> 0.035 | K12: 0.05 | L12: 0.065 | M12: 0.08 | N12: 0.095 | O12: 0.11 | P12: 0.125 | Q12: 0.14 | R12: 0.155 | S12: 0.17 | T12: 0.185 | U12: 0.2 | V12: 0.215 | W12: 0.23 | X12: 0.245 | Y12: 0.26 | Z12: 0.275
A13: 4 | B13: 50 osôb | C13: Senica | D13: 7144 | G13: 0.02 | H13: 0.02 | I13: 0.02 | J13: =I13+0.015 -> 0.035 | K13: 0.05 | L13: 0.065 | M13: 0.08 | N13: 0.095 | O13: 0.11 | P13: 0.125 | Q13: 0.14 | R13: 0.155 | S13: 0.17 | T13: 0.185 | U13: 0.2 | V13: 0.215 | W13: 0.23 | X13: 0.245 | Y13: 0.26 | Z13: 0.275
A14: 4 | B14: 50 osôb | C14: Zlaté Moravce | D14: 7980 | G14: 0.02 | H14: 0.02 | I14: 0.02 | J14: =I14+0.015 -> 0.035 | K14: 0.05 | L14: 0.065 | M14: 0.08 | N14: 0.095 | O14: 0.11 | P14: 0.125 | Q14: 0.14 | R14: 0.155 | S14: 0.17 | T14: 0.185 | U14: 0.2 | V14: 0.215 | W14: 0.23 | X14: 0.245 | Y14: 0.26 | Z14: 0.275
A15: 5 | B15: 50 osôb | C15: Senica | D15: 12160 | G15: 0.03 | H15: 0.03 | I15: 0.03 | J15: =I15+0.02 -> 0.05 | K15: 0.07 | L15: 0.09 | M15: 0.11 | N15: 0.13 | O15: 0.15 | P15: 0.17 | Q15: 0.19 | R15: 0.21 | S15: 0.23 | T15: 0.25 | U15: 0.27 | V15: 0.29 | W15: 0.31 | X15: 0.33 | Y15: 0.35 | Z15: 0.37
F17: 2016 | G17: 2017 | H17: 2018 | I17: 2019 | J17: 2020 | K17: 2021 | L17: 2022 | M17: 2023 | N17: 2024 | O17: 2025 | P17: 2026 | Q17: 2027 | R17: 2028 | S17: 2029 | T17: 2030 | U17: 2031 | V17: 2032 | W17: 2033 | X17: 2034 | Y17: 2035 | Z17: 2036
A18: Typ | D18: Senica (počet) | E18: Zlaté Moravce | F18: 2016-01-01 | G18: 2017-01-01 | H18: 2018-01-01 | I18: 2019-01-01 | J18: 2020-01-01 | K18: 2021-01-01 | L18: 2022-01-01 | M18: 2023-01-01 | N18: 2024-01-01 | O18: 2025-01-01 | P18: 2026-01-01 | Q18: 2027-01-01 | R18: 2028-01-01 | S18: 2029-01-01 | T18: 2030-01-01 | U18: 2031-01-01 | V18: 2032-01-01 | W18: 2033-01-01 | X18: 2034-01-01 | Y18: 2035-01-01 | Z18: 2036-01-01
A19: 1 | D19: 2 | E19: 1 | F19: =Predpoklady!D10 -> 63000 | G19: 0.0053 | H19: 0.0053 | I19: 0.0142 | J19: 0.0179 | K19: 0.0194 | L19: 0.0213 | M19: 0.0248 | N19: 0.0337 | O19: 0.0504 | P19: 0.0509 | Q19: 0.0514 | R19: 0.0519 | S19: 0.0524 | T19: 0.0529 | U19: 0.0534 | V19: 0.054 | W19: 0.0545 | X19: 0.055 | Y19: 0.0556 | Z19: 0.0561
A20: 2 | D20: 2 | E20: 1 | F20: =Predpoklady!D9 -> 89000 | G20: 0.0065 | H20: 0.0065 | I20: 0.0171 | J20: 0.0217 | K20: 0.0234 | L20: 0.0258 | M20: 0.03 | N20: 0.0407 | O20: 0.0609 | P20: 0.0615 | Q20: 0.0621 | R20: 0.0627 | S20: 0.0633 | T20: 0.0639 | U20: 0.0645 | V20: 0.0652 | W20: 0.0658 | X20: 0.0665 | Y20: 0.0671 | Z20: 0.0678
A21: 3 | D21: 4 | E21: 3 | F21: =Predpoklady!D8 -> 215000 | G21: 0.0091 | H21: 0.0091 | I21: 0.0242 | J21: 0.0306 | K21: 0.0331 | L21: 0.0364 | M21: 0.0423 | N21: 0.0575 | O21: 0.086 | P21: 0.0868 | Q21: 0.0877 | R21: 0.0885 | S21: 0.0894 | T21: 0.0903 | U21: 0.0912 | V21: 0.0921 | W21: 0.093 | X21: 0.0939 | Y21: 0.0948 | Z21: 0.0957
D22: =SUM(D19:D21) -> 8 | E22: =SUM(E19:E21) -> 5
A24: Senica - výdavky na údržbu a opravu
A25: 1 | G25: =$D19*$F19*G19 -> 667.8 | H25: =$D19*$F19*H19 -> 667.8 | I25: 1789.2 | J25: 2255.4 | K25: 2444.4 | L25: 2683.8 | M25: 3124.8 | N25: 4246.2 | O25: 6350.4 | P25: 6413.4 | Q25: 6476.4 | R25: 6539.4 | S25: 6602.4 | T25: 6665.4 | U25: 6728.4 | V25: 6804 | W25: 6867 | X25: 6930 | Y25: 7005.6 | Z25: 7068.6
A26: 2 | G26: =$D20*$F20*G20 -> 1157 | H26: =$D20*$F20*H20 -> 1157 | I26: 3043.8 | J26: 3862.6 | K26: 4165.2 | L26: 4592.4 | M26: 5340 | N26: 7244.6 | O26: 10840.2 | P26: 10947 | Q26: 11053.8 | R26: 11160.6 | S26: 11267.4 | T26: 11374.2 | U26: 11481 | V26: 11605.6 | W26: 11712.4 | X26: 11837 | Y26: 11943.8 | Z26: 12068.4
A27: 3 | G27: =$D21*$F21*G21 -> 7826 | H27: =$D21*$F21*H21 -> 7826 | I27: 20812 | J27: 26316 | K27: 28466 | L27: 31304 | M27: 36378 | N27: 49450 | O27: 73960 | P27: 74648 | Q27: 75422 | R27: 76110 | S27: 76884 | T27: 77658 | U27: 78432 | V27: 79206 | W27: 79980 | X27: 80754 | Y27: 81528 | Z27: 82302
G28: =SUM(G25:G27) -> 9650.8 | H28: =SUM(H25:H27) -> 9650.8 | I28: 25645 | J28: 32434 | K28: 35075.6 | L28: 38580.2 | M28: 44842.8 | N28: 60940.8 | O28: 91150.6 | P28: 92008.4 | Q28: 92952.2 | R28: 93810 | S28: 94753.8 | T28: 95697.6 | U28: 96641.4 | V28: 97615.6 | W28: 98559.4 | X28: 99521 | Y28: 100477.4 | Z28: 101439
A29: Zlaté Morave - výdavky na údržbu a opravu
A30: 1 | G30: =$E19*$F19*G19 -> 333.9 | H30: =$E19*$F19*H19 -> 333.9 | I30: 894.6 | J30: 1127.7 | K30: 1222.2 | L30: 1341.9 | M30: 1562.4 | N30: 2123.1 | O30: 3175.2 | P30: 3206.7 | Q30: 3238.2 | R30: 3269.7 | S30: 3301.2 | T30: 3332.7 | U30: 3364.2 | V30: 3402 | W30: 3433.5 | X30: 3465 | Y30: 3502.8 | Z30: 3534.3
A31: 2 | G31: =$E20*$F20*G20 -> 578.5 | H31: 578.5 | I31: 1521.9 | J31: 1931.3 | K31: 2082.6 | L31: 2296.2 | M31: 2670 | N31: 3622.3 | O31: 5420.1 | P31: 5473.5 | Q31: 5526.9 | R31: 5580.3 | S31: 5633.7 | T31: 5687.1 | U31: 5740.5 | V31: 5802.8 | W31: 5856.2 | X31: 5918.5 | Y31: 5971.9 | Z31: 6034.2
A32: 3 | G32: 5869.5 | H32: 5869.5 | I32: 15609 | J32: 19737 | K32: 21349.5 | L32: 23478 | M32: 27283.5 | N32: 37087.5 | O32: 55470 | P32: 55986 | Q32: 56566.5 | R32: 57082.5 | S32: 57663 | T32: 58243.5 | U32: 58824 | V32: 59404.5 | W32: 59985 | X32: 60565.5 | Y32: 61146 | Z32: 61726.5
G33: =SUM(G30:G32) -> 6781.9 | H33: =SUM(H30:H32) -> 6781.9 | I33: 18025.5 | J33: 22796 | K33: 24654.3 | L33: 27116.1 | M33: 31515.9 | N33: 42832.9 | O33: 64065.3 | P33: 64666.2 | Q33: 65331.6 | R33: 65932.5 | S33: 66597.9 | T33: 67263.3 | U33: 67928.7 | V33: 68609.3 | W33: 69274.7 | X33: 69949 | Y33: 70620.7 | Z33: 71295
A35: Výdavky na km
F36: 2016 | G36: 2017 | H36: 2018 | I36: 2019 | J36: 2020 | K36: 2021 | L36: 2022 | M36: 2023 | N36: 2024 | O36: 2025 | P36: 2026 | Q36: 2027 | R36: 2028 | S36: 2029 | T36: 2030 | U36: 2031 | V36: 2032 | W36: 2033 | X36: 2034 | Y36: 2035 | Z36: 2036
A37: Náklady na celkovú prevádzku s maržou | F37: =Kalkulačka!C7 -> 1.3 | G37: =F37*(1+Kalkulačka!$C$3)*(1+Kalkulačka!C8) -> 1.3923 | H37: =G37*(1+Kalkulačka!$C$3) -> 1.420146 | I37: =H37*(1+Kalkulačka!$C$3) -> 1.44854892 | J37: =I37*(1+Kalkulačka!$C$3) -> 1.477519898 | K37: =J37*(1+Kalkulačka!$C$3) -> 1.507070296 | L37: =K37*(1+Kalkulačka!$C$3) -> 1.537211702 | M37: =L37*(1+Kalkulačka!$C$3) -> 1.567955936 | N37: =M37*(1+Kalkulačka!$C$3) -> 1.599315055 | O37: =N37*(1+Kalkulačka!$C$3) -> 1.631301356 | P37: =O37*(1+Kalkulačka!$C$3) -> 1.663927383 | Q37: =P37*(1+Kalkulačka!$C$3) -> 1.697205931 | R37: =Q37*(1+Kalkulačka!$C$3) -> 1.73115005 | S37: =R37*(1+Kalkulačka!$C$3) -> 1.765773051 | T37: =S37*(1+Kalkulačka!$C$3) -> 1.801088512 | U37: =T37*(1+Kalkulačka!$C$3) -> 1.837110282 | V37: =U37*(1+Kalkulačka!$C$3) -> 1.873852487 | W37: =V37*(1+Kalkulačka!$C$3) -> 1.911329537 | X37: =W37*(1+Kalkulačka!$C$3) -> 1.949556128 | Y37: =X37*(1+Kalkulačka!$C$3) -> 1.988547251 | Z37: =Y37*(1+Kalkulačka!$C$3) -> 2.028318196

Sheet Diesel
A1: Senica
A2: Typ autobusu | B2: Počet km deň | C2: Počet km | D2: Prepočítaný počet km | E2: Spotreba | G2: 2017 | H2: 2018 | I2: 2019 | J2: 2020 | K2: 2021 | L2: 2022 | M2: 2023 | N2: 2024 | O2: 2025 | P2: 2026 | Q2: 2027 | R2: 2028 | S2: 2029 | T2: 2030 | U2: 2031 | V2: 2032 | W2: 2033 | X2: 2034 | Y2: 2035 | Z2: 2036
A3: 20 | B3: 45.2 | C3: =B3*Kalkulačka!$C$6 -> 8588 | D3: =C3*(1+Kalkulačka!$C$10) -> 9876.2 | E3: =Predpoklady!E10 -> 10.1 | G3: =$D3*$E3/100*Kalkulačka!$C$18*(1+Kalkulačka!$C$3*(1-Predpoklady!F8)) -> 966.262599 | H3: =G3*(1+Kalkulačka!$C$3*(1-Predpoklady!$F$8)) -> 973.9926998 | I3: =H3*(1+Kalkulačka!$C$3*(1-Predpoklady!$F$8)) -> 981.7846414 | J3: =I3*(1+Kalkulačka!$C$3*(1-Predpoklady!$F$8)) -> 989.6389185 | K3: =J3*(1+Kalkulačka!$C$3*(1-Predpoklady!$F$8)) -> 997.5560299 | L3: =K3*(1+Kalkulačka!$C$3*(1-Predpoklady!$F$8)) -> 1005.536478 | M3: =L3*(1+Kalkulačka!$C$3*(1-Predpoklady!$F$8)) -> 1013.58077 | N3: =M3*(1+Kalkulačka!$C$3*(1-Predpoklady!$F$8)) -> 1021.689416 | O3: =N3*(1+Kalkulačka!$C$3*(1-Predpoklady!$F$8)) -> 1029.862931 | P3: =O3*(1+Kalkulačka!$C$3*(1-Predpoklady!$F$8)) -> 1038.101835 | Q3: =P3*(1+Kalkulačka!$C$3*(1-Predpoklady!$F$8)) -> 1046.40665 | R3: =Q3*(1+Kalkulačka!$C$3*(1-Predpoklady!$F$8)) -> 1054.777903 | S3: =R3*(1+Kalkulačka!$C$3*(1-Predpoklady!$F$8)) -> 1063.216126 | T3: =S3*(1+Kalkulačka!$C$3*(1-Predpoklady!$F$8)) -> 1071.721855 | U3: =T3*(1+Kalkulačka!$C$3*(1-Predpoklady!$F$8)) -> 1080.29563 | V3: =U3*(1+Kalkulačka!$C$3*(1-Predpoklady!$F$8)) -> 1088.937995 | W3: =V3*(1+Kalkulačka!$C$3*(1-Predpoklady!$F$8)) -> 1097.649499 | X3: =W3*(1+Kalkulačka!$C$3*(1-Predpoklady!$F$8)) -> 1106.430695 | Y3: =X3*(1+Kalkulačka!$C$3*(1-Predpoklady!$F$8)) -> 1115.28214 | Z3: =Y3*(1+Kalkulačka!$C$3*(1-Predpoklady!$F$8)) -> 1124.204397
A4: 25 | B4: 58.4 | C4: =B4*Kalkulačka!$C$6 -> 11096 | D4: =C4*(1+Kalkulačka!$C$10) -> 12760.4 | E4: =Predpoklady!E9 -> 19 | G4: =$D4*$E4/100*Kalkulačka!$C$18*(1+Kalkulačka!$C$3*(1-Predpoklady!F8)) -> 2348.560807 | H4: =G4*(1+Kalkulačka!$C$3*(1-Predpoklady!$F$8)) -> 2367.349294 | I4: =H4*(1+Kalkulačka!$C$3*(1-Predpoklady!$F$8)) -> 2386.288088 | J4: =I4*(1+Kalkulačka!$C$3*(1-Predpoklady!$F$8)) -> 2405.378393 | K4: =J4*(1+Kalkulačka!$C$3*(1-Predpoklady!$F$8)) -> 2424.62142 | L4: =K4*(1+Kalkulačka!$C$3*(1-Predpoklady!$F$8)) -> 2444.018392 | M4: =L4*(1+Kalkulačka!$C$3*(1-Predpoklady!$F$8)) -> 2463.570539 | N4: =M4*(1+Kalkulačka!$C$3*(1-Predpoklady!$F$8)) -> 2483.279103 | O4: =N4*(1+Kalkulačka!$C$3*(1-Predpoklady!$F$8)) -> 2503.145336 | P4: =O4*(1+Kalkulačka!$C$3*(1-Predpoklady!$F$8)) -> 2523.170498 | Q4: =P4*(1+Kalkulačka!$C$3*(1-Predpoklady!$F$8)) -> 2543.355862 | R4: =Q4*(1+Kalkulačka!$C$3*(1-Predpoklady!$F$8)) -> 2563.702709 | S4: =R4*(1+Kalkulačka!$C$3*(1-Predpoklady!$F$8)) -> 2584.212331 | T4: =S4*(1+Kalkulačka!$C$3*(1-Predpoklady!$F$8)) -> 2604.88603 | U4: =T4*(1+Kalkulačka!$C$3*(1-Predpoklady!$F$8)) -> 2625.725118 | V4: =U4*(1+Kalkulačka!$C$3*(1-Predpoklady!$F$8)) -> 2646.730919 | W4: =V4*(1+Kalkulačka!$C$3*(1-Predpoklady!$F$8)) -> 2667.904766 | X4: =W4*(1+Kalkulačka!$C$3*(1-Predpoklady!$F$8)) -> 2689.248004 | Y4: =X4*(1+Kalkulačka!$C$3*(1-Predpoklady!$F$8)) -> 2710.761988 | Z4: =Y4*(1+Kalkulačka!$C$3*(1-Predpoklady!$F$8)) -> 2732.448084
A5: 50 | B5: 168.4 | C5: =B5*Kalkulačka!$C$6 -> 31996 | D5: =C5*(1+Kalkulačka!$C$10) -> 36795.4 | E5: =Predpoklady!E8 -> 28 | G5: =$D5*$E5/100*Kalkulačka!$C$18*(1+Kalkulačka!$C$3*(1-Predpoklady!F8)) -> 9980.113482 | H5: =G5*(1+Kalkulačka!$C$3*(1-Predpoklady!$F$8)) -> 10059.95439 | I5: =H5*(1+Kalkulačka!$C$3*(1-Predpoklady!$F$8)) -> 10140.43402 | J5: =I5*(1+Kalkulačka!$C$3*(1-Predpoklady!$F$8)) -> 10221.5575 | K5: =J5*(1+Kalkulačka!$C$3*(1-Predpoklady!$F$8)) -> 10303.32996 | L5: =K5*(1+Kalkulačka!$C$3*(1-Predpoklady!$F$8)) -> 10385.7566 | M5: =L5*(1+Kalkulačka!$C$3*(1-Predpoklady!$F$8)) -> 10468.84265 | N5: =M5*(1+Kalkulačka!$C$3*(1-Predpoklady!$F$8)) -> 10552.59339 | O5: =N5*(1+Kalkulačka!$C$3*(1-Predpoklady!$F$8)) -> 10637.01414 | P5: =O5*(1+Kalkulačka!$C$3*(1-Predpoklady!$F$8)) -> 10722.11025 | Q5: =P5*(1+Kalkulačka!$C$3*(1-Predpoklady!$F$8)) -> 10807.88713 | R5: =Q5*(1+Kalkulačka!$C$3*(1-Predpoklady!$F$8)) -> 10894.35023 | S5: =R5*(1+Kalkulačka!$C$3*(1-Predpoklady!$F$8)) -> 10981.50503 | T5: =S5*(1+Kalkulačka!$C$3*(1-Predpoklady!$F$8)) -> 11069.35707 | U5: =T5*(1+Kalkulačka!$C$3*(1-Predpoklady!$F$8)) -> 11157.91193 | V5: =U5*(1+Kalkulačka!$C$3*(1-Predpoklady!$F$8)) -> 11247.17522 | W5: =V5*(1+Kalkulačka!$C$3*(1-Predpoklady!$F$8)) -> 11337.15263 | X5: =W5*(1+Kalkulačka!$C$3*(1-Predpoklady!$F$8)) -> 11427.84985 | Y5: =X5*(1+Kalkulačka!$C$3*(1-Predpoklady!$F$8)) -> 11519.27265 | Z5: =Y5*(1+Kalkulačka!$C$3*(1-Predpoklady!$F$8)) -> 11611.42683
B6: =SUM(B3:B5) -> 272 | C6: =SUM(C3:C5) -> 51680 | D6: =SUM(D3:D5) -> 59432 | G6: =SUM(G3:G5) -> 13294.93689 | H6: =SUM(H3:H5) -> 13401.29638 | I6: 13508.50675 | J6: 13616.57481 | K6: 13725.50741 | L6: 13835.31147 | M6: 13945.99396 | N6: 14057.56191 | O6: 14170.0224 | P6: 14283.38258 | Q6: 14397.64964 | R6: 14512.83084 | S6: =SUM(S3:S5) -> 14628.93349 | T6: 14745.96496 | U6: 14863.93268 | V6: 14982.84414 | W6: 15102.70689 | X6: 15223.52855 | Y6: 15345.31677 | Z6: 15468.07931
A8: Zlaté Moravce
A9: Typ autobusu | B9: Počet km deň | C9: Počet km | D9: Prepočítaný počet km | E9: Spotreba | G9: 2017 | H9: 2018 | I9: 2019 | J9: 2020 | K9: 2021 | L9: 2022 | M9: 2023 | N9: 2024 | O9: 2025 | P9: 2026 | Q9: 2027 | R9: 2028 | S9: 2029 | T9: 2030 | U9: 2031 | V9: 2032 | W9: 2033 | X9: 2034 | Y9: 2035 | Z9: 2036
A10: 20 | B10: 8.8 | C10: =B10*Kalkulačka!$C$6 -> 1672 | D10: =C10*(1+Kalkulačka!$C$10) -> 1922.8 | E10: =Predpoklady!E10 -> 10.1 | G10: =$D10*$E10/100*Kalkulačka!$C$18*(1+Kalkulačka!$C$3*(1-Predpoklady!F8)) -> 188.1219219 | H10: =G10*(1+Kalkulačka!$C$3*(1-Predpoklady!$F$8)) -> 189.6268973 | I10: =H10*(1+Kalkulačka!$C$3*(1-Predpoklady!$F$8)) -> 191.1439125 | J10: =I10*(1+Kalkulačka!$C$3*(1-Predpoklady!$F$8)) -> 192.6730638 | K10: =J10*(1+Kalkulačka!$C$3*(1-Predpoklady!$F$8)) -> 194.2144483 | L10: =K10*(1+Kalkulačka!$C$3*(1-Predpoklady!$F$8)) -> 195.7681639 | M10: =L10*(1+Kalkulačka!$C$3*(1-Predpoklady!$F$8)) -> 197.3343092 | N10: =M10*(1+Kalkulačka!$C$3*(1-Predpoklady!$F$8)) -> 198.9129837 | O10: =N10*(1+Kalkulačka!$C$3*(1-Predpoklady!$F$8)) -> 200.5042875 | P10: =O10*(1+Kalkulačka!$C$3*(1-Predpoklady!$F$8)) -> 202.1083218 | Q10: =P10*(1+Kalkulačka!$C$3*(1-Predpoklady!$F$8)) -> 203.7251884 | R10: =Q10*(1+Kalkulačka!$C$3*(1-Predpoklady!$F$8)) -> 205.3549899 | S10: =R10*(1+Kalkulačka!$C$3*(1-Predpoklady!$F$8)) -> 206.9978298 | T10: =S10*(1+Kalkulačka!$C$3*(1-Predpoklady!$F$8)) -> 208.6538125 | U10: =T10*(1+Kalkulačka!$C$3*(1-Predpoklady!$F$8)) -> 210.323043 | V10: =U10*(1+Kalkulačka!$C$3*(1-Predpoklady!$F$8)) -> 212.0056273 | W10: =V10*(1+Kalkulačka!$C$3*(1-Predpoklady!$F$8)) -> 213.7016723 | X10: =W10*(1+Kalkulačka!$C$3*(1-Predpoklady!$F$8)) -> 215.4112857 | Y10: =X10*(1+Kalkulačka!$C$3*(1-Predpoklady!$F$8)) -> 217.134576 | Z10: =Y10*(1+Kalkulačka!$C$3*(1-Predpoklady!$F$8)) -> 218.8716526
A11: 25 | B11: 17.2 | C11: =B11*Kalkulačka!$C$6 -> 3268 | D11: =C11*(1+Kalkulačka!$C$10) -> 3758.2 | E11: =Predpoklady!E9 -> 19 | G11: =$D11*$E11/100*Kalkulačka!$C$18*(1+Kalkulačka!$C$3*(1-Predpoklady!F8)) -> 691.6994159 | H11: =G11*(1+Kalkulačka!$C$3*(1-Predpoklady!$F$8)) -> 697.2330112 | I11: =H11*(1+Kalkulačka!$C$3*(1-Predpoklady!$F$8)) -> 702.8108753 | J11: =I11*(1+Kalkulačka!$C$3*(1-Predpoklady!$F$8)) -> 708.4333623 | K11: =J11*(1+Kalkulačka!$C$3*(1-Predpoklady!$F$8)) -> 714.1008292 | L11: =K11*(1+Kalkulačka!$C$3*(1-Predpoklady!$F$8)) -> 719.8136359 | M11: =L11*(1+Kalkulačka!$C$3*(1-Predpoklady!$F$8)) -> 725.5721449 | N11: =M11*(1+Kalkulačka!$C$3*(1-Predpoklady!$F$8)) -> 731.3767221 | O11: =N11*(1+Kalkulačka!$C$3*(1-Predpoklady!$F$8)) -> 737.2277359 | P11: =O11*(1+Kalkulačka!$C$3*(1-Predpoklady!$F$8)) -> 743.1255578 | Q11: =P11*(1+Kalkulačka!$C$3*(1-Predpoklady!$F$8)) -> 749.0705622 | R11: =Q11*(1+Kalkulačka!$C$3*(1-Predpoklady!$F$8)) -> 755.0631267 | S11: =R11*(1+Kalkulačka!$C$3*(1-Predpoklady!$F$8)) -> 761.1036317 | T11: =S11*(1+Kalkulačka!$C$3*(1-Predpoklady!$F$8)) -> 767.1924608 | U11: =T11*(1+Kalkulačka!$C$3*(1-Predpoklady!$F$8)) -> 773.3300005 | V11: =U11*(1+Kalkulačka!$C$3*(1-Predpoklady!$F$8)) -> 779.5166405 | W11: =V11*(1+Kalkulačka!$C$3*(1-Predpoklady!$F$8)) -> 785.7527736 | X11: =W11*(1+Kalkulačka!$C$3*(1-Predpoklady!$F$8)) -> 792.0387958 | Y11: =X11*(1+Kalkulačka!$C$3*(1-Predpoklady!$F$8)) -> 798.3751062 | Z11: =Y11*(1+Kalkulačka!$C$3*(1-Predpoklady!$F$8)) -> 804.762107
A12: 50 | B12: 84.8 | C12: =B12*Kalkulačka!$C$6 -> 16112 | D12: =C12*(1+Kalkulačka!$C$10) -> 18528.8 | E12: =Predpoklady!E8 -> 28 | G12: =$D12*$E12/100*Kalkulačka!$C$18*(1+Kalkulačka!$C$3*(1-Predpoklady!F8)) -> 5025.61534 | H12: =G12*(1+Kalkulačka!$C$3*(1-Predpoklady!$F$8)) -> 5065.820263 | I12: =H12*(1+Kalkulačka!$C$3*(1-Predpoklady!$F$8)) -> 5106.346825 | J12: =I12*(1+Kalkulačka!$C$3*(1-Predpoklady!$F$8)) -> 5147.197599 | K12: =J12*(1+Kalkulačka!$C$3*(1-Predpoklady!$F$8)) -> 5188.37518 | L12: =K12*(1+Kalkulačka!$C$3*(1-Predpoklady!$F$8)) -> 5229.882182 | M12: =L12*(1+Kalkulačka!$C$3*(1-Predpoklady!$F$8)) -> 5271.721239 | N12: =M12*(1+Kalkulačka!$C$3*(1-Predpoklady!$F$8)) -> 5313.895009 | O12: =N12*(1+Kalkulačka!$C$3*(1-Predpoklady!$F$8)) -> 5356.406169 | P12: =O12*(1+Kalkulačka!$C$3*(1-Predpoklady!$F$8)) -> 5399.257418 | Q12: =P12*(1+Kalkulačka!$C$3*(1-Predpoklady!$F$8)) -> 5442.451478 | R12: =Q12*(1+Kalkulačka!$C$3*(1-Predpoklady!$F$8)) -> 5485.99109 | S12: =R12*(1+Kalkulačka!$C$3*(1-Predpoklady!$F$8)) -> 5529.879018 | T12: =S12*(1+Kalkulačka!$C$3*(1-Predpoklady!$F$8)) -> 5574.118051 | U12: =T12*(1+Kalkulačka!$C$3*(1-Predpoklady!$F$8)) -> 5618.710995 | V12: =U12*(1+Kalkulačka!$C$3*(1-Predpoklady!$F$8)) -> 5663.660683 | W12: =V12*(1+Kalkulačka!$C$3*(1-Predpoklady!$F$8)) -> 5708.969968 | X12: =W12*(1+Kalkulačka!$C$3*(1-Predpoklady!$F$8)) -> 5754.641728 | Y12: =X12*(1+Kalkulačka!$C$3*(1-Predpoklady!$F$8)) -> 5800.678862 | Z12: =Y12*(1+Kalkulačka!$C$3*(1-Predpoklady!$F$8)) -> 5847.084293
B13: =SUM(B10:B12) -> 110.8 | C13: =SUM(C10:C12) -> 21052 | D13: =SUM(D10:D12) -> 24209.8 | G13: =SUM(G10:G12) -> 5905.436678 | H13: =SUM(H10:H12) -> 5952.680171 | I13: 6000.301613 | J13: 6048.304026 | K13: 6096.690458 | L13: 6145.463981 | M13: 6194.627693 | N13: 6244.184715 | O13: 6294.138193 | P13: 6344.491298 | Q13: 6395.247228 | R13: 6446.409206 | S13: 6497.98048 | T13: 6549.964324 | U13: 6602.364038 | V13: 6655.182951 | W13: 6708.424414 | X13: 6762.09181 | Y13: 6816.188544 | Z13: 6870.718052

Sheet Ceny_listkov
A1: Od | B1: Kam | C1: km | D1: Cena v hotovosti | E1: Cena z čipovej karty | F1: Počet detí | J1: Zohľadnenie dotácie pre deti ktore pojdu novymi busmi (nad 20)
A2: Kuklov | B2: Šaštín-Stráže | C2: 6 | D2: 0.4 | E2: 0.25 | F2: 23 | G2: =F2*E2 -> 5.75 | H2: =F2*D2 -> 9.2 | J2: =IF(F2<0,E2*F2,K2) -> 12.08862569 | K2: =G2*Predpoklady!$B$17 -> 12.08862569
A3: Smolinské | B3: Šaštín-Stráže | C3: 4 | D3: 0.35 | E3: 0.22 | F3: 33 | G3: =F3*E3 -> 7.26 | H3: =F3*D3 -> 11.55 | J3: =IF(F3<0,E3*F3,K3) -> 15.26320391 | K3: =G3*Predpoklady!$B$17 -> 15.26320391
A4: Koválov | B4: Dojč | C4: 5 | D4: 0.4 | E4: 0.25 | F4: 22 | G4: 5.5 | H4: 8.8 | J4: 11.56303327 | K4: =G4*Predpoklady!$B$17 -> 11.56303327
A5: Šajdíkove Humence | B5: Dojč | C5: 5 | D5: 0.4 | E5: 0.25 | F5: 30 | G5: 7.5 | H5: 12 | I5: malo spojeni | J5: 15.76777263 | K5: =G5*Predpoklady!$B$17 -> 15.76777263
A6: Smrdáky | B6: Senica | C6: 7 | D6: 0.4 | E6: 0.25 | F6: 22 | G6: 5.5 | H6: 8.8 | J6: 11.56303327 | K6: =G6*Predpoklady!$B$17 -> 11.56303327
A7: Častkov | B7: Sobotište | C7: 10+9 | D7: 0.9 | E7: 0.66 | F7: 23 | G7: 15.18 | H7: 20.7 | I7: prestup v Senici | J7: 31.91397181 | K7: =G7*Predpoklady!$B$17 -> 31.91397181
A8: Prietrž | B8: Senica | C8: 7 | D8: 0.4 | E8: 0.25 | F8: 13 | G8: 3.25 | H8: 5.2 | J8: 6.832701475 | K8: =G8*Predpoklady!$B$17 -> 6.832701475
A9: Hlboké | B9: Senica | C9: 5 | D9: 0.4 | E9: 0.25 | F9: 13 | G9: 3.25 | H9: 5.2 | J9: 6.832701475 | K9: =G9*Predpoklady!$B$17 -> 6.832701475
A10: Hradište pod Vrátnom | B10: Jablonica | C10: 5 | D10: 0.4 | E10: 0.25 | F10: 10 | G10: 2.5 | H10: 4 | J10: 5.255924211 | K10: =G10*Predpoklady!$B$17 -> 5.255924211
A11: Osuské | B11: Jablonica | C11: 2 | D11: 0.35 | E11: 0.22 | F11: 27 | G11: 5.94 | H11: 9.45 | J11: 12.48807593 | K11: =G11*Predpoklady!$B$17 -> 12.48807593
A12: Plavecký Peter | B12: Cerová | C12: 9 | D12: 0.45 | E12: 0.33 | F12: 15 | G12: 4.95 | H12: 6.75 | J12: 10.40672994 | K12: =G12*Predpoklady!$B$17 -> 10.40672994
A13: Prievaly | B13: Cerová | C13: 6 | D13: 0.4 | E13: 0.25 | F13: 35 | G13: 8.75 | H13: 14 | J13: 18.39573474 | K13: =G13*Predpoklady!$B$17 -> 18.39573474
C14: =SUM(C2:C13)+19 -> 80 | E14: =SUM(E2:E13)*Predpoklady!B17 -> 7.211128018 | G14: =SUM(G2:G13) -> 75.33 | H14: =SUM(H2:H13) -> 115.65 | J14: =SUM(J2:J13) -> 158.3715083 | K14: =SUM(K2:K13) -> 158.3715083 | M14: =E14/C14 -> 0.09013910023
A16: Od | B16: Kam | C16: km | D16: Cena v hotovosti | E16: Cena z čipovej karty | F16: Počet detí | J16: Zohľadnenie dotácie pre deti ktore pojdu novymi busmi (nad 20)
A17: Mankovce | B17: Sľažany | C17: 7 | D17: 0.4 | E17: 0.3 | F17: 8 | G17: =F17*E17 -> 2.4 | H17: =F17*D17 -> 3.2 | I17: malo spojeni | J17: =IF(F17<0,E17*F17,K17) -> 5.045687243 | K17: =G17*Predpoklady!$B$17 -> 5.045687243
A18: Martin nad Žitavou | B18: Sľažany | C18: 3 | D18: 0.4 | E18: 0.3 | F18: 17 | G18: =F18*E18 -> 5.1 | H18: =F18*D18 -> 6.8 | J18: =IF(F18<0,E18*F18,K18) -> 10.72208539 | K18: =G18*Predpoklady!$B$17 -> 10.72208539
A19: Velčice | B19: Sľažany | C19: 4 | D19: 0.4 | E19: 0.3 | F19: 20 | G19: 6 | H19: 8 | J19: 12.61421811 | K19: =G19*Predpoklady!$B$17 -> 12.61421811
A20: Hostie | B20: Topoľčianky | C20: 4 | D20: 0.4 | E20: 0.3 | F20: 45 | G20: 13.5 | H20: 18 | J20: 28.38199074 | K20: =G20*Predpoklady!$B$17 -> 28.38199074
A21: Slepčany | B21: Tesárske Mlyňany | C21: 5 | D21: 0.4 | E21: 0.3 | F21: 25 | G21: 7.5 | H21: 10 | J21: 15.76777263 | K21: =G21*Predpoklady!$B$17 -> 15.76777263
A22: Čierne Kľačany | B22: Zlaté Moravce | C22: 5 | D22: 0.4 | E22: 0.3 | F22: 32 | G22: 9.6 | H22: 12.8 | J22: 20.18274897 | K22: =G22*Predpoklady!$B$17 -> 20.18274897
A23: Čaradice | B23: Tekovské Nemce | C23: 2 | D23: 0.4 | E23: 0.3 | F23: 12 | G23: 3.6 | H23: 4.8 | J23: 7.568530865 | K23: =G23*Predpoklady!$B$17 -> 7.568530865
C24: =SUM(C17:C23) -> 30 | E24: =SUM(E17:E23)*Predpoklady!B17 -> 4.414976338 | G24: =SUM(G17:G23) -> 47.7 | H24: =SUM(H17:H23) -> 63.6 | J24: =SUM(J17:J23) -> 100.283034 | K24: =SUM(K17:K23) -> 100.283034 | M24: =E24/C24 -> 0.1471658779
A27: Senica a okolie | E27: Zlate Moravce
A28: Východzia stanica | B28: Počet detí | C28: Cieľová stanica | E28: Východzia stanica | F28: Počet detí | G28: Cieľová stanica
A29: Nová 203, Kuklov | B29: 23 | C29: Štúrova 1115,Šaštín Stráže | E29: Mankovce 102 | F29: 8 | G29: Sľažany 122
A30: Smolinské 407 | B30: 33 | E30: Martin nad Žitavou 110 | F30: 17
A31: Koválov 216 | B31: 22 | C31: Dojč 137 | E31: Velčice | F31: 20
A32: Šajdíkove Humence 102 | B32: 30 | E32: Hostie 86 | F32: 45 | G32: Litoměřická 32, Topoľčianky
A33: Školská 33, Smrdáky | B33: 22 | C33: V. P. Tótha 32, Senica | E33: Školská 232, Slepčany | F33: 25 | G33: Školská 608, Tesárske Mlyňany
A34: Častkov 130 | B34: 23 | C34: Sobotište 317 | E34: Školská 2, Čierne Kľačany | F34: 32 | G34: Pribinova 1,Zlaté Moravce
A35: Prietrž 138 | B35: 13 | C35: Sadová 620,Senica | E35: Čaradice 156 | F35: 12 | G35: Školská 416, Tekovské Nemce
A36: Športová 259, Hlboké | B36: 13 | C36: Komenského 959, Senica | F36: =SUM(F29:F35) -> 159
A37: Hradište pod Vrátnom 44 | B37: 10 | C37: Školská 1, Jablonica
A38: Výhony 11, Osuské | B38: 27
A39: Plavecký Peter 89 | B39: 15 | C39: Cerová 277
A40: Prievaly 187 | B40: 35
B41: =SUM(B29:B40) -> 266
